lending/lending_fUSD_20260102
["ID","MTS","AMOUNT","RATE_DAILY","PERIOD"]
[400321183,1767369593153,-10000.01,0.00024599,2]
[400321184,1767369593265,-10000.01,0.00024599,2]
[400321185,1767369593398,-10000.01,0.00024599,2]
[400321186,1767369593519,-10000.01,0.00024599,2]
[400321187,1767369593659,-10000.01,0.00024599,2]
[400321188,1767369668885,4655504.68452482,0.000301,120]
[400321196,1767370231753,-151.0,0.00018661,2]
[400321198,1767370231763,-151.0,0.00018661,2]
[400321200,1767370231773,-826.0,0.000196,2]
[400321202,1767370231782,-826.0,0.0002021,2]
[400321203,1767370231791,-246.42617285,0.0002082,3]
[400321204,1767370231813,-579.57382715,0.0002082,3]
[400321205,1767370231823,-232.06899131,0.0002143,3]
[400321206,1767370231834,-593.93100869,0.0002143,3]
[400321207,1767370231844,-826.0,0.0002204,4]
[400321208,1767370231853,-150.0,0.000225,14]
[400321209,1767370231862,-826.0,0.00022651,4]
[400321210,1767370231871,-826.0,0.00023261,5]
[400321211,1767370231880,-1000.0,0.000238,2]
[400321212,1767370231894,-1200.0,0.0002387,2]
[400321213,1767370231903,-826.0,0.00023871,6]
[400321214,1767370231913,-826.0,0.00024481,6]
[400321215,1767370231922,-300.0,0.00024488,2]
[400321216,1767370231931,-300.0,0.00024488,2]
[400321217,1767370231940,-16305.63496653,0.00024489,2]
[400321218,1767370231952,-1650.0,0.00024489,2]
[400321219,1767370231963,-2455.1720478,0.00024489,2]
[400321220,1767370231982,-15662.60100601,0.00024489,2]
[400321245,1767370232249,-2400.0,0.00024489,2]
[400321248,1767370232260,-500.0,0.00024489,2]
[400321252,1767370232271,-279.26125715,0.00024489,2]
[400321254,1767370232286,-2109.64631498,0.00024489,2]
[400321256,1767370238152,-461.915,0.00024489,2]
[400321257,1767370238164,-20856.0640848,0.00024489,2]
[400321258,1767370238176,-28358.10237597,0.00024489,2]
[400321259,1767370238187,-252.20002668,0.00024489,2]
[400321260,1767370238200,-3062.81626439,0.00024489,2]
[400321261,1767370238218,-4526.11353727,0.00024489,2]
[400321262,1767370238230,-2805.58781842,0.00024489,2]
[400321263,1767370238239,-300.0,0.00024497,2]
[400321264,1767370238248,-165.94292473,0.00024497,2]
[400321265,1767370238257,-500.0,0.00024497,2]
[400321266,1767370238267,-500.0,0.00024497,2]
[400321267,1767370238276,-216.92966305,0.00024497,2]
[400321268,1767370238287,-283.07033695,0.00024497,2]
[400321269,1767370238296,-500.0,0.00024497,2]
[400321270,1767370238306,-500.0,0.00024497,2]
[400321271,1767370238316,-302.98412555,0.00024497,2]
[400321272,1767370238338,-197.01587445,0.00024497,2]
[400321273,1767370238348,-500.0,0.00024497,2]
[400321274,1767370238357,-150.96167897,0.00024497,2]
[400321275,1767370238369,-349.03832103,0.00024497,2]
[400321276,1767370238379,-500.0,0.00024497,2]
[400321277,1767370238388,-500.0,0.00024497,2]
[400321278,1767370238398,-500.0,0.00024497,2]
[400321279,1767370238407,-500.0,0.00024497,2]
[400321280,1767370238417,-500.0,0.00024497,2]
[400321281,1767370238428,-500.0,0.00024497,2]
[400321282,1767370238438,-500.0,0.00024497,2]
[400321283,1767370238448,-500.0,0.00024497,2]
[400321284,1767370238458,-500.0,0.00024497,2]
[400321285,1767370238469,-500.0,0.00024497,2]
[400321286,1767370238479,-500.0,0.00024497,2]
[400321287,1767370238488,-500.0,0.00024497,2]
[400321288,1767370238498,-500.0,0.00024497,2]
[400321289,1767370238508,-500.0,0.00024497,2]
[400321291,1767370238518,-446.14854803,0.00024497,2]
[400321292,1767370238528,-500.0,0.00024497,2]
[400321293,1767370238537,-500.0,0.00024497,2]
[400321294,1767370238547,-500.0,0.00024497,2]
[400321295,1767370238556,-500.0,0.00024497,2]
[400321296,1767370238566,-500.0,0.00024497,2]
[400321297,1767370238578,-500.0,0.00024497,2]
[400321298,1767370238588,-500.0,0.00024497,2]
[400321299,1767370238599,-500.0,0.00024497,2]
[400321300,1767370238609,-500.0,0.00024497,2]
[400321301,1767370238619,-1200.0,0.00024498,2]
[400321302,1767370238629,-1824.73706603,0.00024498,2]
[400321303,1767370238639,-195.0,0.00024588,2]
[400321304,1767370238650,-286.32464711,0.00024589,2]
[400321309,1767370238694,-500.0,0.00024589,2]
[400321311,1767370238710,-304.0,0.00024589,2]
[400321312,1767370238722,-706.55591932,0.00024589,2]
[400321313,1767370240089,-922.18333418,0.00024589,2]
[400321314,1767370240104,-500.0,0.00024589,2]
[400321315,1767370240117,-361.08965294,0.00024589,2]
[400321316,1767370240271,-3745.88,0.00024589,2]
[400321317,1767370240332,-473.93335833,0.00024589,2]
[400321318,1767370240344,-2911.12206947,0.00024589,2]
[400321319,1767370240468,-8729.85355906,0.00024589,2]
[400321320,1767370240480,-420.86114321,0.00024589,2]
[400321321,1767370240491,-3391.7295467,0.00024589,2]
[400321332,1767370244016,-2584.11823244,0.00024589,2]
[400321341,1767370244075,-1797.61271401,0.00024589,2]
[400321343,1767370244087,-446.54,0.00024589,2]
[400321345,1767370244098,-273.87594425,0.00024589,2]
[400321346,1767370244134,-512.6900035,0.00024589,2]
[400321347,1767370244146,-7525.23870322,0.00024589,2]
[400321348,1767370244157,-2072.15655106,0.00024589,2]
[400321349,1767370245500,-393.39206397,0.00024589,2]
[400321350,1767370245511,-261.98000005,0.00024589,2]
[400321351,1767370245522,-688.7483796,0.00024589,2]
[400321367,1767370245836,-459.37326215,0.00024589,2]
[400321368,1767370245847,-4592.59837625,0.00024589,2]
[400321369,1767370245856,-1000.0,0.00024598,2]
[400321370,1767370245866,-725.808,0.00024598,7]
[400321371,1767370245875,-164.13,0.00024598,7]
[400321372,1767370245885,-151.0,0.00024599,2]
[400321373,1767370245895,-150.0,0.00024649,2]
[400321374,1767370245905,-2289.96607442,0.000247,2]
[400321375,1767370245914,-1852.42,0.00024743,2]
[400321376,1767370245924,-1000.0,0.00024773,2]
[400321377,1767370245933,-159.02,0.0002479,2]
[400321378,1767370245942,-4115.89,0.000248,2]
[400321379,1767370245952,-800.0,0.0002481,9]
[400321380,1767370245961,-800.0,0.0002481,9]
[400321381,1767370245971,-800.0,0.0002481,9]
[400321382,1767370245980,-800.0,0.0002481,9]
[400321383,1767370245990,-800.0,0.0002481,9]
[400321384,1767370245999,-800.0,0.0002481,9]
[400321385,1767370246008,-800.0,0.0002481,9]
[400321386,1767370246017,-800.0,0.0002481,9]
[400321387,1767370246026,-400.0,0.000249,2]
[400321388,1767370246040,-400.0,0.000249,3]
[400321389,1767370246049,-150.0,0.00025,2]
[400321390,1767370246058,-1000.0,0.00025068,2]
[400321391,1767370246068,-826.0,0.00025091,7]
[400321392,1767370246080,-826.0,0.00025701,7]
[400321393,1767370246090,-771.0,0.00026008,2]
[400321394,1767370246099,-826.0,0.00026311,8]
[400321395,1767370246108,-1824.737066,0.00026529,2]
[400321396,1767370246127,-420.0,0.00026542,2]
[400321397,1767370246139,-187.0,0.00026552,2]
[400321398,1767370246148,-297.15,0.000266,14]
[400321399,1767370246159,-458.92,0.00026676,2]
[400321400,1767370246168,-826.0,0.00026921,9]
[400321401,1767370246177,-405.2,0.00027397,4]
[400321402,1767370246187,-314.88,0.00027397,7]
[400321403,1767370246198,-300.0,0.00027397,2]
[400321404,1767370246207,-334.65,0.00027397,30]
[400321405,1767370246216,-150.0,0.00027397,5]
[400321406,1767370246414,-2000.0,0.000275,2]
[400321407,1767370246483,-1000.0,0.000275,2]
[400321408,1767370246492,-826.0,0.00027531,9]
[400321409,1767370246501,-1983.333,0.000279,5]
[400321410,1767370246511,-1983.333,0.000279,5]
[400321411,1767370246520,-1983.33,0.000279,5]
[400321412,1767370246529,-1020.01,0.000279,3]
[400321413,1767370246539,-250.0,0.00027945,5]
[400321414,1767370246548,-5000.0,0.00028127,2]
[400321415,1767370246557,-826.0,0.00028141,10]
[400321416,1767370246567,-1000.0,0.00028201,2]
[400321417,1767370246577,-803.3,0.00028249,2]
[400321418,1767370246586,-350.0,0.00028493,5]
[400321419,1767370246595,-1824.737066,0.00028561,2]
[400321420,1767370246604,-826.0,0.00028752,10]
[400321421,1767370246614,-587.0,0.00028769,2]
[400321422,1767370246623,-166.66,0.00028856,2]
[400321423,1767370246632,-450.0,0.00029041,5]
[400321424,1767370246641,-826.0,0.00029362,11]
[400321425,1767370246650,-550.0,0.00029589,5]
[400321426,1767370246659,-803.3,0.00029661,2]
[400321427,1767370246668,-1000.0,0.00029684,2]
[400321428,1767370246677,-166.66,0.00029808,2]
[400321429,1767370246686,-826.0,0.00029972,11]
[400321430,1767370246695,-300.0,0.00029978,2]
[400321431,1767370246704,-161.1,0.00030008,2]
[400321432,1767370246713,-5320.9616957,0.00030027,2]
[400321433,1767370246722,-173.15985167,0.00030034,2]
[400321434,1767370246731,-300.0,0.00030084,2]
[400321435,1767370246740,-2000.0,0.00030099,30]
[400321436,1767370246749,-161.2593828,0.00030126,2]
[400321437,1767370246758,-518.81892514,0.00030126,2]
[400321438,1767370246768,-150.0,0.00030126,2]
[400321439,1767370246778,-171962.42847254,0.00030127,3]
[400321440,1767370246791,-238514.79315946,0.00030127,3]
[400321441,1767370246800,-70054.51816554,0.00030127,3]
[400321442,1767370246811,-1332.1817412,0.00030127,3]
[400321443,1767370246830,-150.0,0.00025,2]
[400321444,1767370246839,-462.84989598,0.00030127,3]
[400321445,1767370246851,-327.410967,0.00030127,3]
[400321446,1767370246861,-657.92929977,0.00030127,3]
[400321447,1767370246873,-379.12940536,0.00030127,3]
[400321448,1767370351948,1757133.29618978,0.000225,120]
[400321449,1767370728030,-5000.0,0.00023,30]
[400321450,1767371120001,1000.0,9e-05,2]
[400321451,1767371120037,1000.0,9e-05,2]
[400321452,1767371120061,1000.0,9e-05,2]
[400321453,1767371120084,7546.16028436,9e-05,2]
[400321454,1767371160132,10000.01,8e-05,2]
[400321455,1767371160159,10000.01,8e-05,2]
[400321456,1767371160185,3534.80750704,8e-05,2]
[400321459,1767371218889,-772.64645658,0.00013443,2]
[400321460,1767371231158,205.0,9.8e-05,2]
[400321463,1767371307237,2729.84153813,0.0001,2]
[400321466,1767371313232,1000.0,0.0002,90]
[400321467,1767371316979,482.62557215,0.0001,2]
[400321468,1767371369136,-151.0,0.00019006,2]
[400321469,1767371369157,-151.0,0.00019006,2]
[400321470,1767371369187,-151.0,0.00019033,2]
[400321471,1767371369208,-151.0,0.00019033,2]
[400321472,1767371369229,-677.0,0.000196,2]
[400321473,1767371369249,-343.14997077,0.0002,5]
[400321474,1767371370769,-4175.33904411,0.0002,5]
[400321475,1767371370789,-931.26092631,0.0002,2]
[400321476,1767371370811,-677.0,0.0002021,2]
[400321477,1767371370834,-677.0,0.0002082,3]
[400321478,1767371370853,-300.0,0.00020898,2]
[400321479,1767371370873,-677.0,0.0002143,3]
[400321480,1767371370893,-677.0,0.0002204,4]
[400321481,1767371370913,-150.0,0.000224,14]
[400321482,1767371370933,-300.0,0.00022442,2]
[400321483,1767371370952,-1435.40002958,0.00022443,2]
[400321484,1767371372098,-7360.18997042,0.00022443,2]
[400321485,1767371372119,-166.66,0.00022502,2]
[400321486,1767371372140,-677.0,0.00022651,4]
[400321487,1767371372160,-150.0,0.00022724,2]
[400321488,1767371372180,-150.0,0.00022725,2]
[400321489,1767371372200,-202.48174013,0.00022725,2]
[400321490,1767371372221,-150.0,0.00022725,2]
[400321491,1767371372241,-150.0,0.00022725,2]
[400321492,1767371372260,-150.0,0.00022725,2]
[400321493,1767371372280,-150.0,0.00022725,2]
[400321494,1767371372300,-150.0,0.00022725,2]
[400321495,1767371372322,-150.0,0.00022725,2]
[400321496,1767371372341,-150.0,0.00022725,2]
[400321497,1767371372362,-150.0,0.00022725,2]
[400321498,1767371372383,-93.66828945,0.00022725,2]
[400321499,1767371372666,-56.33171055,0.00022725,2]
[400321500,1767371372693,-150.0,0.00022725,2]
[400321501,1767371372715,-200.0,0.00022725,2]
[400321502,1767371372736,-150.0,0.00022725,2]
[400321503,1767371372765,-150.0,0.00022725,2]
[400321504,1767371372790,-500.0,0.00022725,2]
[400321505,1767371372811,-150.0,0.00022725,2]
[400321506,1767371372831,-150.0,0.00022725,2]
[400321507,1767371372851,-150.0,0.00022862,2]
[400321508,1767371372871,-150.0,0.00022862,2]
[400321509,1767371372892,-150.0,0.00022862,2]
[400321510,1767371372912,-150.0,0.00022862,2]
[400321511,1767371372932,-150.0,0.00022862,2]
[400321512,1767371372952,-150.0,0.00022862,2]
[400321513,1767371372975,-400.0,0.00022862,2]
[400321514,1767371372996,-150.0,0.00022862,2]
[400321515,1767371373017,-2056.40342797,0.00022936,2]
[400321516,1767371373038,-500.0,0.00022985,2]
[400321517,1767371373058,-200.0,0.00022985,2]
[400321518,1767371373083,-151.0,0.00022985,2]
[400321519,1767371373104,-179.50398035,0.00022985,2]
[400321520,1767371373125,-200.0,0.00022985,2]
[400321521,1767371373147,-200.0,0.00022985,2]
[400321522,1767371373169,-446.54,0.00022989,2]
[400321523,1767371373190,-151.0,0.00022997,7]
[400321524,1767371373214,-1000.0,0.00022998,2]
[400321525,1767371373235,-500.0,0.00022999,2]
[400321526,1767371373257,-150.0,0.00022999,2]
[400321527,1767371373279,-150.0,0.00022999,2]
[400321528,1767371373300,-150.0,0.00022999,2]
[400321529,1767371373325,-477.41065639,0.00022999,2]
[400321530,1767371373346,-389.29307991,0.00022999,2]
[400321531,1767371373374,-142.51714483,0.00022999,2]
[400321532,1767371373824,-357.48285517,0.00022999,2]
[400321533,1767371373845,-157.57637146,0.00022999,2]
[400321534,1767371373866,-501.35885601,0.00022999,2]
[400321535,1767371373892,-500.0,0.00022999,2]
[400321536,1767371373918,-500.0,0.00022999,2]
[400321537,1767371373944,-500.0,0.00022999,2]
[400321538,1767371373971,-500.0,0.00022999,2]
[400321539,1767371373997,-500.0,0.00022999,2]
[400321540,1767371374021,-500.0,0.00022999,2]
[400321541,1767371374047,-500.0,0.00022999,2]
[400321542,1767371374074,-500.0,0.00022999,2]
[400321543,1767371374101,-500.0,0.00022999,2]
[400321544,1767371374127,-500.0,0.00022999,2]
[400321545,1767371374152,-500.0,0.00022999,2]
[400321546,1767371374178,-500.0,0.00022999,2]
[400321547,1767371374203,-500.0,0.00022999,2]
[400321548,1767371374229,-500.0,0.00022999,2]
[400321549,1767371374254,-500.0,0.00022999,2]
[400321550,1767371374281,-500.0,0.00022999,2]
[400321551,1767371374308,-500.0,0.00022999,2]
[400321552,1767371374336,-483.58191736,0.00022999,2]
[400321553,1767371374382,-16.41808264,0.00022999,2]
[400321554,1767371374409,-500.0,0.00022999,2]
[400321555,1767371374436,-500.0,0.00022999,2]
[400321556,1767371374463,-500.0,0.00022999,2]
[400321557,1767371374488,-500.0,0.00022999,2]
[400321558,1767371374514,-500.0,0.00022999,2]
[400321559,1767371374542,-500.0,0.00022999,2]
[400321560,1767371374567,-500.0,0.00022999,2]
[400321561,1767371374593,-500.0,0.00022999,2]
[400321562,1767371374619,-500.0,0.00022999,2]
[400321563,1767371374646,-500.0,0.00022999,2]
[400321564,1767371374673,-500.0,0.00022999,2]
[400321565,1767371374701,-500.0,0.00022999,2]
[400321566,1767371374728,-239.72501062,0.00022999,2]
[400321567,1767371374754,-500.0,0.00022999,2]
[400321568,1767371374779,-500.0,0.00022999,2]
[400321569,1767371374804,-500.0,0.00022999,2]
[400321570,1767371374829,-500.0,0.00022999,2]
[400321571,1767371374853,-500.0,0.00022999,2]
[400321572,1767371374878,-500.0,0.00022999,2]
[400321573,1767371374904,-500.0,0.00022999,2]
[400321574,1767371374929,-243.85690674,0.00022999,2]
[400321575,1767371374980,-256.14309326,0.00022999,2]
[400321576,1767371375008,-500.0,0.00022999,2]
[400321577,1767371375035,-500.0,0.00022999,2]
[400321578,1767371375061,-500.0,0.00022999,2]
[400321579,1767371375090,-500.0,0.00022999,2]
[400321580,1767371375117,-500.0,0.00022999,2]
[400321581,1767371375143,-500.0,0.00022999,2]
[400321582,1767371375168,-500.0,0.00022999,2]
[400321583,1767371375194,-500.0,0.00022999,2]
[400321584,1767371375220,-500.0,0.00022999,2]
[400321585,1767371375245,-500.0,0.00022999,2]
[400321586,1767371375271,-500.0,0.00022999,2]
[400321587,1767371375306,-500.0,0.00022999,2]
[400321588,1767371375336,-500.0,0.00022999,2]
[400321589,1767371375363,-500.0,0.00022999,2]
[400321590,1767371375389,-200.0,0.00022999,2]
[400321591,1767371375416,-500.0,0.00022999,2]
[400321592,1767371375443,-500.0,0.00022999,2]
[400321593,1767371375471,-500.0,0.00022999,2]
[400321594,1767371375497,-500.0,0.00022999,2]
[400321595,1767371375518,-543.85690674,0.00022999,2]
[400321596,1767371375573,-36.79009326,0.00022999,2]
[400321597,1767371375594,-9963.20990674,0.00023,30]
[400321598,1767371376260,-10000.0,0.00023,30]
[400321599,1767371376693,-10000.0,0.00023,30]
[400321600,1767371377282,-10000.0,0.00023,30]
[400321601,1767371377999,-10000.0,0.00023,30]
[400321602,1767371378718,-10000.0,0.00023,30]
[400321603,1767371379365,-10000.0,0.00023,30]
[400321604,1767371379927,-10000.0,0.00023,30]
[400321605,1767371380679,-10000.0,0.00023,30]
[400321606,1767371382330,-10000.0,0.00023,30]
[400321607,1767371386240,-151.0,0.00021368,2]
[400321608,1767371386261,-151.0,0.00021368,2]
[400321609,1767371386283,-9698.0,0.00023,30]
[400321611,1767371404687,-151.0,0.00019135,2]
[400321612,1767371404713,-151.0,0.00019135,2]
[400321613,1767371404736,-4993.0,0.00023,30]
[400321617,1767371431962,-151.0,0.00019243,2]
[400321619,1767371431972,-151.0,0.00019243,2]
[400321621,1767371431982,-2017.58557692,0.00023,30]
[400321624,1767371431994,-799.21,0.00023,30]
[400321626,1767371432007,-801.98263016,0.00023,30]
[400321629,1767371432080,-4666.58221468,0.00023,30]
[400321630,1767371432092,-841.05406,0.00023,30]
[400321631,1767371432104,-1231.20141571,0.00023,30]
[400321632,1767371432117,-1398.05906453,0.00023,30]
[400321633,1767371432129,-781.98694337,0.00023,30]
[400321634,1767371432141,-3240.38433072,0.00023,30]
[400321635,1767371432209,-458.86841978,0.00023,30]
[400321636,1767371432221,-15451.52177338,0.00023,30]
[400321637,1767371432232,-1208.45479682,0.00023,30]
[400321639,1767371432244,-6592.46386705,0.00023,30]
[400321641,1767371432257,-4341.15418,0.00023,30]
[400321642,1767371432269,-875.88927357,0.00023,30]
[400321648,1767371438111,-151.0,0.00019219,2]
[400321649,1767371438126,-151.0,0.00019219,2]
[400321650,1767371438136,-637.0,0.000196,2]
[400321651,1767371438146,-637.0,0.0002021,2]
[400321652,1767371438156,-637.0,0.0002082,3]
[400321653,1767371438166,-637.0,0.0002143,3]
[400321654,1767371438176,-637.0,0.0002204,4]
[400321655,1767371438186,-637.0,0.00022651,4]
[400321656,1767371438196,-206052.0328632,0.00023,30]
[400321657,1767371438209,-4469.34245051,0.00023,30]
[400321658,1767371438221,-315.49620518,0.00023,30]
[400321659,1767371438233,-6338.39060665,0.00023,30]
[400321660,1767371438244,-36012.0,0.00023,30]
[400321661,1767371438256,-1043.42892494,0.00023,30]
[400321665,1767371438505,-2633.25332605,0.00023,30]
[400321667,1767371438516,-1000.0,0.00023,30]
[400321668,1767371438529,-1056.81988898,0.00023,30]
[400321669,1767371438540,-121926.35983593,0.00023,30]
[400321670,1767371438549,-4788.86552613,0.00023036,2]
[400321671,1767371438558,-150.0,0.00023136,2]
[400321672,1767371438568,-150.0,0.00023136,2]
[400321673,1767371438577,-150.0,0.00023136,2]
[400321674,1767371438586,-200.0,0.0002314,2]
[400321675,1767371438595,-166.66,0.00023245,2]
[400321676,1767371438606,-637.0,0.00023261,5]
[400321677,1767371438618,-150.0,0.00023273,2]
[400321678,1767371438627,-150.0,0.00023273,2]
[400321679,1767371438637,-150.0,0.00023273,2]
[400321680,1767371438646,-250.0,0.0002341,2]
[400321681,1767371438656,-250.0,0.0002341,2]
[400321682,1767371438666,-250.0,0.0002341,2]
[400321683,1767371438676,-1000.0,0.00023858,2]
[400321684,1767371438685,-637.0,0.00023871,6]
[400321685,1767371438695,-166.66,0.00023988,2]
[400321686,1767371438707,-150.99,0.00024174,2]
[400321687,1767371438716,-300.0,0.00024388,2]
[400321688,1767371438726,-2000.0,0.000244,2]
[400321689,1767371438735,-637.0,0.00024481,6]
[400321690,1767371438746,-231.90272314,0.00024588,2]
[400321691,1767371438756,-229.88754356,0.00024588,2]
[400321692,1767371438765,-1899.23071139,0.00024588,2]
[400321693,1767371438775,-166.66,0.00024731,2]
[400321694,1767371438784,-151.0,0.000248,7]
[400321695,1767371438793,-151.0,0.000248,7]
[400321696,1767371438803,-151.0,0.000248,7]
[400321697,1767371438812,-205.745596,0.000248,7]
[400321698,1767371438822,-151.0,0.000248,7]
[400321699,1767371438832,-151.0,0.000248,7]
[400321700,1767371438841,-151.0,0.000248,7]
[400321701,1767371438850,-151.0,0.000248,7]
[400321702,1767371438860,-159.492639,0.000248,7]
[400321703,1767371438870,-151.0,0.000248,7]
[400321704,1767371438880,-151.0,0.000248,7]
[400321705,1767371438889,-151.0,0.000248,7]
[400321706,1767371438898,-151.0,0.000248,7]
[400321707,1767371438907,-151.0,0.000248,7]
[400321708,1767371438917,-151.0,0.000248,7]
[400321709,1767371438926,-151.0,0.000248,7]
[400321710,1767371438936,-151.0,0.000248,7]
[400321711,1767371438945,-151.0,0.000248,7]
[400321712,1767371438955,-151.0,0.000248,7]
[400321713,1767371438964,-386.448222,0.000248,7]
[400321714,1767371438974,-151.0,0.000248,2]
[400321715,1767371438985,-386.448222,0.000248,7]
[400321716,1767371438995,-151.0,0.000248,2]
[400321717,1767371439006,-386.448222,0.000248,7]
[400321718,1767371439014,-239.93022,0.000248,2]
[400321719,1767371439022,-386.448222,0.000248,7]
[400321720,1767371439030,-151.0,0.000248,7]
[400321721,1767371439037,-151.0,0.000248,7]
[400321722,1767371439045,-750.343476,0.000248,7]
[400321723,1767371439052,-750.343476,0.000248,7]
[400321724,1767371439061,-750.343476,0.000248,7]
[400321725,1767371439069,-750.343476,0.000248,7]
[400321726,1767371439077,-151.0,0.000248,7]
[400321727,1767371439084,-151.0,0.000248,7]
[400321728,1767371439091,-151.0,0.000248,7]
[400321729,1767371439099,-186.373163,0.000248,7]
[400321730,1767371439108,-6364.77947248,0.000248,3]
[400321731,1767371439119,-151.0,0.000248,7]
[400321732,1767371439128,-151.0,0.000248,7]
[400321733,1767371439136,-800.0,0.0002481,9]
[400321734,1767371439143,-800.0,0.0002481,9]
[400321735,1767371439151,-800.0,0.0002481,9]
[400321736,1767371439160,-800.0,0.0002481,9]
[400321737,1767371439168,-800.0,0.0002481,9]
[400321738,1767371439176,-800.0,0.0002481,9]
[400321739,1767371439184,-800.0,0.0002481,9]
[400321740,1767371439191,-800.0,0.0002481,9]
[400321741,1767371439198,-151.0,0.00024897,7]
[400321742,1767371439208,-172.39948709,0.00024897,7]
[400321743,1767371439216,-153.2316,0.000249,7]
[400321744,1767371439224,-153.967938,0.000249,7]
[400321745,1767371439232,-151.0,0.000249,7]
[400321746,1767371439239,-151.0,0.000249,7]
[400321747,1767371439248,-151.0,0.000249,7]
[400321748,1767371439258,-151.680834,0.000249,7]
[400321749,1767371439268,-70561.79041265,0.000249,3]
[400321750,1767371439285,-20978.97306639,0.000249,3]
[400321751,1767371439296,-2802.14483546,0.000249,3]
[400321754,1767371440138,-2993.80498,0.000249,3]
[400321755,1767371440150,-708.47340879,0.000249,3]
[400321756,1767371440161,-901.67915432,0.000249,3]
[400321757,1767371440174,-773.18948,0.000249,3]
[400321758,1767371440343,-180963.68307139,0.000249,3]
[400321759,1767371440353,-207.1271079,0.000249,2]
[400321760,1767371440362,-150.0,0.00025,2]
[400321762,1767371440375,-150.0,0.00025,2]
[400321764,1767371440384,-150.0,0.00025,2]
[400321765,1767371440394,-150.0,0.00025,2]
[400321766,1767371440404,-291.868,0.00025,2]
[400321767,1767371440413,-637.0,0.00025091,7]
[400321768,1767371440431,-4788.86552605,0.00025229,2]
[400321769,1767371440442,-166.66,0.00025473,2]
[400321770,1767371440452,-637.0,0.00025701,7]
[400321771,1767371440462,-166.66,0.00026216,2]
[400321772,1767371440471,-637.0,0.00026311,8]
[400321773,1767371440481,-1269.0,0.00026508,2]
[400321774,1767371440491,-163.01,0.000267,14]
[400321775,1767371440500,-1000.0,0.0002684,2]
[400321776,1767371440510,-637.0,0.00026921,9]
[400321777,1767371440520,-180.0,0.00027,7]
[400321778,1767371440529,-2056.40342792,0.00027345,2]
[400321779,1767371440539,-150.0,0.00027369,2]
[400321780,1767371440549,-2000.0,0.00027396,4]
[400321781,1767371440558,-2000.0,0.00027396,7]
[400321782,1767371440568,-500.0,0.00027397,20]
[400321783,1767371440579,-150.0,0.00027397,5]
[400321784,1767371440589,-4788.86552605,0.00027423,2]
[400321785,1767371440599,-2000.0,0.0002753,9]
[400321786,1767371440611,-637.0,0.00027531,9]
[400321787,1767371440623,-160.2392931,0.00027945,5]
[400321788,1767371440633,-679.32651132,0.00028,60]
[400321789,1767371440642,-2000.0,0.000281,2]
[400321790,1767371440652,-637.0,0.00028141,10]
[400321791,1767371440661,-2000.0,0.00028751,10]
[400321792,1767371440672,-637.0,0.00028752,10]
[400321793,1767371440682,-637.0,0.00029362,11]
[400321794,1767371440691,-2056.40342792,0.0002955,2]
[400321795,1767371440705,-2000.0,0.00029588,5]
[400321796,1767371440715,-1032.51144633,0.00029616,2]